fUSD/lending_fUSD_20251220
["ID","MTS","AMOUNT","RATE_DAILY","PERIOD"]
[399292725,1766247144152,5000.0,0.0004292,120]
[399292726,1766247144687,151.0,0.0004292,120]
[399292727,1766247145347,151.0,0.0004292,120]
[399292728,1766247146501,4123.0,0.0004292,120]
[399292729,1766247147736,414.0,0.0004292,120]
[399292730,1766247148371,429.318,0.0004292,120]
[399292731,1766247149003,445.202766,0.0004292,120]
[399292732,1766247150024,461.67526834,0.0004292,120]
[399292733,1766247150220,4123.0,0.0004292,120]
[399292734,1766247150407,478.75725327,0.0004292,120]
[399292735,1766247150516,4123.0,0.0004292,120]
[399292736,1766247151030,496.47127164,0.0004292,120]
[399292737,1766247151169,4123.0,0.0004292,120]
[399292738,1766247151648,514.84070869,0.0004292,120]
[399292739,1766247151786,4123.0,0.0004292,120]
[399292740,1766247152416,4123.0,0.0004292,120]
[399292741,1766247152854,533.88981491,0.0004292,120]
[399292742,1766247153110,4123.0,0.0004292,120]
[399292743,1766247153515,553.64373807,0.0004292,120]
[399292744,1766247153718,4123.0,0.0004292,120]
[399292745,1766247154153,574.12855637,0.0004292,120]
[399292746,1766247154341,4123.0,0.0004292,120]
[399292747,1766247154777,574.12855637,0.0004292,120]
[399292748,1766247154960,4123.0,0.0004292,120]
[399292749,1766247186228,375.11796233,0.0004292,120]
[399292751,1766247189238,1722.43969839,0.0004292,120]
[399292752,1766247189714,170.90989085,0.0004292,120]
[399292753,1766247192281,267.97401367,0.0004292,120]
[399292754,1766247195543,281.95847037,0.0004292,120]
[399292755,1766247195889,3512.25547036,0.0004292,120]
[399292764,1766247362115,500.0,0.00042918,120]
[399292765,1766247378058,3229.236356,0.00042918,30]
[399292766,1766247426969,199.21716719,0.00042918,120]
[399292945,1766247661701,500.0,0.00042873,120]
[399292946,1766247870244,236.11113584,0.00042873,120]
[399292955,1766247919560,250.0,0.00042873,120]
[399292977,1766247920178,250.0,0.00042873,120]
[399293000,1766247920809,250.0,0.00042873,120]
[399293013,1766247921419,250.0,0.00042873,120]
[399293037,1766247922040,250.0,0.00042873,120]
[399293061,1766247922681,250.0,0.00042873,120]
[399293085,1766247923333,250.0,0.00042873,120]
[399293107,1766247923952,250.0,0.00042873,120]
[399293924,1766247960862,500.0,0.00042873,120]
[399294056,1766247966394,520.0,0.00042873,120]
[399294057,1766247967004,153.78508436,0.00042873,120]
[399294059,1766247972500,1000.0,0.00042873,120]
[399294060,1766247973134,1000.0,0.00042873,120]
[399294061,1766247973735,1000.0,0.00042873,120]
[399294062,1766247974472,1785.47061055,0.00042873,120]
[399294063,1766247974828,1000.0,0.00042873,120]
[399294064,1766247975483,1000.0,0.00042873,120]
[399294065,1766247976164,1000.0,0.00042873,120]
[399294066,1766247976697,151.0,0.00042873,120]
[399294067,1766247976763,1000.0,0.00042873,120]
[399294068,1766247977887,151.0,0.00042873,120]
[399294069,1766247978536,151.0,0.00042873,120]
[399294070,1766247979191,151.0,0.00042873,120]
[399294072,1766247979824,151.0,0.00042873,120]
[399294073,1766247980045,500.0,0.00042873,120]
[399294074,1766247980450,151.0,0.00042873,120]
[399294075,1766247980738,500.0,0.00042873,120]
[399294076,1766247981375,500.0,0.00042873,120]
[399294077,1766247981608,151.0,0.00042873,120]
[399294078,1766247981762,151.0,0.00042873,120]
[399294079,1766247981997,500.0,0.00042873,120]
[399294080,1766247982244,151.0,0.00042873,120]
[399294081,1766247982396,151.0,0.00042873,120]
[399294082,1766247982628,500.0,0.00042873,120]
[399294083,1766247982876,151.0,0.00042873,120]
[399294084,1766247983503,151.0,0.00042873,120]
[399294085,1766247983951,500.0,0.00042873,120]
[399294086,1766247984155,151.0,0.00042873,120]
[399294087,1766247984583,500.0,0.00042873,120]
[399294088,1766248025580,407.21754602,0.00042873,120]
[399294089,1766248029504,200.0,0.00042873,120]
[399294090,1766248036593,620.0,0.00042873,120]
[399294091,1766248038528,970.77463272,0.00042873,120]
[399294092,1766248045940,338.52169392,0.00042873,120]
[399294134,1766248187670,499.0,0.00042873,30]
[399294153,1766248231556,-172.22,0.00011675,2]
[399294154,1766248231566,-250.0,0.00012258,2]
[399294155,1766248231580,-250.0,0.00012842,2]
[399294157,1766248231589,-217.03305166,0.00012842,2]
[399294159,1766248231600,-32.96694834,0.00012842,2]
[399294161,1766248231611,-174.85,0.00013431,2]
[399294162,1766248231620,-300.0,0.00013522,2]
[399294163,1766248231630,-543.74832806,0.00013522,2]
[399294164,1766248231641,-656.25167194,0.00013522,2]
[399294165,1766248231653,-300.0,0.00013522,2]
[399294166,1766248231662,-11461.808975,0.00013523,2]
[399294167,1766248231672,-150.0,0.00013591,2]
[399294168,1766248231682,-632.644,0.00013595,2]
[399294169,1766248231691,-13654.28321932,0.00013673,2]
[399294170,1766248231701,-188.1352884,0.00013673,2]
[399294171,1766248231710,-3087.31,0.00013714,2]
[399294172,1766248231719,-3087.31,0.00013714,2]
[399294173,1766248231731,-150.0,0.00013722,2]
[399294174,1766248231739,-162.09319878,0.00013723,2]
[399294175,1766248231748,-285.32732309,0.00013723,2]
[399294176,1766248231757,-500.0,0.00013723,2]
[399294177,1766248231766,-500.0,0.00013723,2]
[399294178,1766248231776,-500.0,0.00013723,2]
[399294179,1766248231785,-500.0,0.00013723,2]
[399294180,1766248231794,-500.0,0.00013723,2]
[399294182,1766248231803,-371.81474559,0.00013723,2]
[399294184,1766248231813,-500.0,0.00013723,2]
[399294185,1766248231822,-500.0,0.00013723,2]
[399294187,1766248231832,-500.0,0.00013723,2]
[399294189,1766248231840,-295.6947038,0.00013723,2]
[399294191,1766248231850,-26044.95490392,0.00013724,2]
[399294205,1766248237666,-907.14,0.00013724,2]
[399294206,1766248237678,-741.7,0.00013724,2]
[399294208,1766248237695,-1586.66,0.00013724,2]
[399294210,1766248237707,-340.00534089,0.00013724,2]
[399294324,1766248239693,-310.63274487,0.00013713,2]
[399294325,1766248239703,-1420.77757174,0.00013724,2]
[399294326,1766248239734,-830.85642175,0.00013724,2]
[399294327,1766248239778,-16512.62240787,0.00013724,2]
[399294328,1766248239790,-10045.45113752,0.00013724,2]
[399294329,1766248239818,-2384.78114555,0.00013724,2]
[399294330,1766248239856,-441.8301933,0.00013724,2]
[399294331,1766248239867,-6310.9068042,0.00013724,2]
[399294332,1766248240056,-932432.31407326,0.00013724,2]
[399294333,1766248240067,-2500.0,0.00013773,2]
[399294334,1766248240077,-203.45891808,0.00013824,2]
[399294335,1766248240087,-500.0,0.00013872,2]
[399294336,1766248240097,-500.0,0.00013872,2]
[399294337,1766248240108,-500.0,0.00013872,2]
[399294338,1766248240118,-630.0,0.00013872,2]
[399294339,1766248240128,-500.0,0.00013872,2]
[399294340,1766248240137,-500.0,0.00013872,2]
[399294341,1766248240150,-506.44561835,0.00013872,2]
[399294342,1766248240168,-500.0,0.00013872,2]
[399294344,1766248240177,-500.0,0.00013872,2]
[399294345,1766248240186,-500.0,0.00013872,2]
[399294346,1766248240197,-500.0,0.00013872,2]
[399294347,1766248240207,-500.0,0.00013872,2]
[399294349,1766248240216,-509.67980687,0.00013872,2]
[399294350,1766248240229,-500.0,0.00013872,2]
[399294351,1766248240239,-13654.28321924,0.00014032,2]
[399294352,1766248240248,-1000.0,0.00014224,2]
[399294353,1766248240258,-324.54698435,0.00014374,2]
[399294354,1766248240268,-13654.28321924,0.0001439,2]
[399294355,1766248240278,-203.45891802,0.00014503,2]
[399294356,1766248240287,-10017.7644167,0.0001451,2]
[399294357,1766248240297,-13654.28321924,0.00014749,2]
[399294358,1766248240306,-174.85,0.00014774,2]
[399294359,1766248240316,-500.0,0.00014787,2]
[399294360,1766248240326,-420.0,0.00014821,2]
[399294361,1766248240336,-420.0,0.00014821,2]
[399294362,1766248240345,-255.0,0.00014834,2]
[399294363,1766248240355,-13654.28321924,0.00015107,2]
[399294364,1766248240365,-203.45891802,0.00015183,2]
[399294365,1766248240374,-6152.8,0.00015248,2]
[399294366,1766248240384,-5000.0,0.00015248,2]
[399294367,1766248240393,-250.0,0.00015426,2]
[399294368,1766248240403,-13654.28321924,0.00015466,2]
[399294369,1766248240412,-1218.93,0.00015616,2]
[399294370,1766248240422,-1218.93,0.00015616,2]
[399294371,1766248240431,-1218.93,0.00015616,2]
[399294372,1766248240440,-1218.93,0.00015616,2]
[399294373,1766248240450,-153.20553774,0.00015679,2]
[399294374,1766248240459,-200.0,0.00015691,2]
[399294375,1766248240468,-207.4,0.00015691,2]
[399294376,1766248240478,-157.57578229,0.00015691,2]
[399294377,1766248240487,-300.0,0.00015691,2]
[399294378,1766248240496,-2000.0,0.00015722,2]
[399294379,1766248240506,-2000.0,0.00015722,2]
[399294380,1766248240515,-2000.0,0.00015722,2]
[399294381,1766248240524,-2000.0,0.00015722,2]
[399294382,1766248240534,-2000.0,0.00015722,2]
[399294383,1766248240543,-13654.28321924,0.00015824,2]
[399294384,1766248240553,-203.45891802,0.00015862,2]
[399294385,1766248240563,-191.38735328,0.00015973,2]
[399294386,1766248240576,-174.85,0.00016117,2]
[399294387,1766248240585,-597.0,0.00016159,2]
[399294388,1766248240595,-1218.93,0.00016178,2]
[399294389,1766248240604,-13654.28321924,0.00016183,2]
[399294390,1766248240614,-597.0,0.00016196,2]
[399294391,1766248240623,-5000.00304604,0.000162,5]
[399294392,1766248240632,-1197.0,0.00016228,2]
[399294393,1766248240642,-873.0,0.00016228,2]
[399294394,1766248240651,-1647.057,0.00016228,2]
[399294395,1766248240661,-3455.0,0.00016228,2]
[399294396,1766248240670,-1331.562,0.00016228,2]
[399294397,1766248240680,-167.0,0.00016245,2]
[399294398,1766248240689,-587.0,0.00016245,2]
[399294399,1766248240699,-597.0,0.00016345,2]
[399294400,1766248240708,-597.0,0.00016369,2]
[399294401,1766248240719,-877.94679186,0.00016428,2]
[399294402,1766248240730,-443.74,0.00016438,2]
[399294403,1766248240740,-9375.8,0.00016438,2]
[399294404,1766248240751,-500.0,0.00016438,2]
[399294405,1766248240761,-500.0,0.00016438,2]
[399294406,1766248240772,-500.0,0.00016438,2]
[399294407,1766248240781,-235.76832595,0.00016438,2]
[399294408,1766248241024,-170.64,0.00016438,2]
[399294409,1766248241037,-1218.93,0.00016438,2]
[399294410,1766248241048,-327.75,0.00016438,2]
[399294411,1766248241061,-464.6,0.00016438,2]
[399294412,1766248241070,-464.6,0.00016438,2]
[399294413,1766248241080,-464.6,0.00016438,2]
[399294414,1766248241089,-464.6,0.00016438,2]
[399294415,1766248241099,-260.000001,0.000165,2]
[399294416,1766248241108,-203.45891802,0.00016541,2]
[399294417,1766248241118,-13654.28321924,0.00016541,2]
[399294418,1766248241127,-1074.5317107,0.00016579,2]
[399294419,1766248241137,-467.58230881,0.00016579,2]
[399294420,1766248241146,-500.0,0.00016607,2]
[399294421,1766248241155,-597.0,0.0001665,2]
[399294422,1766248241165,-10333.35358582,0.0001666,2]
[399294423,1766248241174,-597.0,0.00016702,2]
[399294424,1766248241183,-443.74,0.00016712,2]
[399294425,1766248241193,-4000.0,0.00016712,2]
[399294426,1766248241202,-167.75,0.00016712,2]
[399294427,1766248241212,-500.0,0.0001674,2]
[399294428,1766248241221,-200.0,0.00016864,2]
[399294429,1766248241231,-7584.0,0.00016867,2]
[399294430,1766248241242,-1194.29389268,0.00016899,5]
[399294431,1766248241252,-10000.0,0.000169,2]
[399294432,1766248241262,-13654.28321924,0.000169,2]
[399294433,1766248241271,-186.21416739,0.000169,2]
[399294434,1766248241281,-692.97788872,0.000169,2]
[399294435,1766248241291,-500.0,0.0001697,2]
[399294436,1766248241300,-1302.14887411,0.0001697,2]
[399294437,1766248241309,-500.0,0.0001697,2]
[399294438,1766248241319,-598.95449494,0.0001697,2]
[399294439,1766248241328,-198.63978603,0.00016973,2]
[399294440,1766248241338,-160.176,0.00016973,2]
[399294441,1766248241347,-160.176,0.00016973,2]
[399294442,1766248241357,-500.0,0.00016973,2]
[399294443,1766248241366,-159.43095819,0.00016973,2]
[399294444,1766248241376,-500.0,0.00016973,2]
[399294445,1766248241386,-500.0,0.00016973,2]
[399294446,1766248241395,-200.0,0.00016973,2]
[399294447,1766248241405,-200.36231387,0.00016983,2]
[399294448,1766248241414,-217.8076658,0.00016983,2]
[399294449,1766248241424,-500.0,0.00016983,2]
[399294450,1766248241433,-443.74,0.00016986,2]
[399294451,1766248241445,-3869.93544157,0.00016986,2]
[399294452,1766248241454,-597.0,0.00016989,2]
[399294453,1766248241463,-150.0,0.0001699,2]
[399294454,1766248241473,-877.94679186,0.0001699,2]
[399294455,1766248241483,-877.94679186,0.0001699,2]
[399294456,1766248241493,-500.0,0.00016999,2]
[399294457,1766248241502,-500.0,0.00016999,2]
[399294458,1766248241511,-500.0,0.00016999,2]
[399294459,1766248241520,-500.0,0.00016999,2]
[399294460,1766248241529,-500.0,0.00016999,2]
[399294461,1766248241539,-500.0,0.00016999,2]
[399294462,1766248241548,-500.0,0.00016999,2]
[399294463,1766248241558,-500.0,0.00016999,2]
[399294464,1766248241568,-500.0,0.00016999,2]
[399294465,1766248241581,-500.0,0.00016999,2]
[399294466,1766248241591,-500.0,0.00016999,2]
[399294467,1766248241600,-1086441.79165683,0.00017,2]
[399294468,1766248241610,-138177.97829482,0.00017,2]
[399294469,1766248241620,-250.0,0.00017,2]
[399294470,1766248241629,-150.09812733,0.00017,2]
[399294471,1766248241639,-1776110.37780318,0.00017,2]
[399294472,1766248241648,-150.0,0.00017,2]
[399294473,1766248241656,-2823.0926238,0.00017,2]
[399294474,1766248241664,-150.0,0.00017,7]
[399294475,1766248241673,-119994.9165863,0.00017,2]
[399294476,1766248241682,-3242.0077578,0.00017,2]
[399294477,1766248241692,-9796.7979566,0.00017,2]
[399294478,1766248241702,-439675.1250872,0.00017,2]
[399294479,1766248241711,-1898228.63156139,0.00017,2]
[399294480,1766248241724,-65723.03748034,0.00017,2]
[399294522,1766248245976,-104001.97488092,0.00013724,2]
[399294523,1766248245988,-134839.98575055,0.00013724,2]
[399294524,1766248245999,-500.0,0.00013724,2]
[399294559,1766248261247,500.0,0.00042873,120]
[399294560,1766248268764,250.0,0.00042873,120]
[399294561,1766248269395,250.0,0.00042873,120]
[399294562,1766248270022,250.0,0.00042873,120]
[399294563,1766248270643,250.0,0.00042873,120]
[399294564,1766248272081,250.0,0.00042873,120]
[399294565,1766248272680,250.0,0.00042873,120]
[399294567,1766248273339,250.0,0.00042873,120]
[399294570,1766248274396,250.0,0.00042873,120]
[399294589,1766248388228,900000.0,0.00042873,30]
[399294610,1766248561822,500.0,0.00042915,120]
[399294612,1766248693599,7134.10965689,0.00042915,30]
[399294868,1766248832506,7857.49765433,0.0004291,30]
[399294872,1766248861445,500.0,0.0004291,120]
[399294882,1766248953810,278.61519705,0.0004291,30]
[399294883,1766248965553,500.0,0.0004291,30]
[399294889,1766249067397,286.91913409,0.00042911,38]
[399294890,1766249161840,500.0,0.00042911,120]
[399294891,1766249188863,250.0,0.00042911,30]
[399294893,1766249285300,309.82,0.00042911,120]
[399294900,1766249431682,-420.26169723,0.0001345,2]
[399294901,1766249431693,-296.73530277,0.0001345,2]
[399294902,1766249431702,-246.50257659,0.00013536,2]
[399294903,1766249431713,-300.0,0.00013598,2]
[399294904,1766249431722,-11749.03051196,0.00013599,2]
[399294905,1766249431735,-994.12251902,0.00013599,2]
[399294906,1766249431746,-325.00010413,0.00013599,2]
[399294907,1766249431758,-2163.57467335,0.00013599,2]
[399294908,1766249431767,-150.0,0.00013622,2]
[399294909,1766249431776,-199.72912616,0.00013622,2]
[399294910,1766249431786,-245.26180136,0.00013622,2]
[399294911,1766249431799,-191.90686032,0.00013623,2]
[399294912,1766249431813,-2775.90264677,0.00013623,2]
[399294913,1766249431825,-16276.87627361,0.00013623,2]
[399294914,1766249431835,-1570.57116541,0.00013623,2]
[399294915,1766249431846,-4023.39240063,0.00013623,2]
[399294916,1766249431857,-326.03172292,0.00013623,2]
[399294917,1766249431868,-628.42,0.00013623,2]
[399294918,1766249431879,-29537.51188811,0.00013623,2]
[399294919,1766249431892,-1166.96670514,0.00013623,2]
[399294920,1766249431903,-339.71408908,0.00013623,2]
[399294921,1766249431914,-627.03415411,0.00013623,2]
[399294922,1766249431925,-2258.15635123,0.00013623,2]
[399294925,1766249437790,-391.22899055,0.00013623,2]
[399294926,1766249437801,-664.98932389,0.00013623,2]
[399294927,1766249437896,-632.13150075,0.00013623,2]
[399294949,1766249439832,-592.64654588,0.00013623,2]
[399294950,1766249439886,-4156.19990002,0.00013623,2]
[399294951,1766249439898,-278.673149,0.00013623,2]
[399294952,1766249439909,-307.44041229,0.00013623,2]
[399294953,1766249439920,-2328.46288558,0.00013623,2]
[399294954,1766249439932,-361.71034979,0.00013623,2]
[399294955,1766249439943,-8564.1082364,0.00013623,2]
[399294956,1766249439954,-1446.41958768,0.00013623,2]
[399294957,1766249439965,-11292.83434283,0.00013623,2]
[399294958,1766249439994,-3488.00000003,0.00013623,2]
[399294959,1766249440005,-9975.43,0.00013623,2]
[399294960,1766249440017,-7927.88365874,0.00013623,2]
[399294961,1766249440028,-839.15,0.00013623,2]
[399294962,1766249440047,-737.66340702,0.00013623,2]
[399294963,1766249440103,-5481.18,0.00013623,2]
[399294964,1766249440262,-880811.36345222,0.00013623,2]
[399294965,1766249440271,-2500.0,0.00013624,2]
[399294966,1766249440280,-166.66,0.00013699,2]
[399294967,1766249440290,-500.0,0.00013699,2]
[399294968,1766249440299,-1424.68,0.000137,2]
[399294969,1766249440308,-1424.68,0.000137,2]
[399294970,1766249440317,-1424.68,0.000137,2]
[399294971,1766249440327,-1424.68,0.000137,2]
[399294972,1766249440336,-1424.68,0.000137,2]
[399294973,1766249440345,-500.0,0.00013723,2]
[399294974,1766249440355,-500.0,0.00013723,2]
[399294975,1766249440364,-500.0,0.00013723,2]
[399294977,1766249440374,-500.0,0.00013723,2]
[399294978,1766249440383,-500.0,0.00013723,2]
[399294979,1766249440393,-500.0,0.00013723,2]
[399294980,1766249440402,-500.0,0.00013723,2]
[399294981,1766249440415,-27591.04624507,0.00013723,2]
[399294982,1766249440424,-500.0,0.00013723,2]
[399294983,1766249440434,-500.0,0.00013723,2]
[399294984,1766249440443,-316.06547294,0.00013723,2]
[399294985,1766249440454,-500.0,0.00013723,2]
[399294986,1766249440464,-500.0,0.00013723,2]
[399294987,1766249440475,-500.0,0.00013723,2]
[399294988,1766249440484,-491.39149488,0.00013723,2]
[399294989,1766249440493,-500.0,0.00013723,2]
[399294990,1766249440503,-500.0,0.00013723,2]
[399294991,1766249440512,-500.0,0.00013723,2]
[399294992,1766249440521,-500.0,0.00013723,2]
[399294993,1766249440531,-286.12837513,0.00013723,2]
[399294994,1766249440540,-500.0,0.00013723,2]
[399294995,1766249440549,-500.0,0.00013723,2]
[399294996,1766249440559,-500.0,0.00013723,2]
[399294997,1766249440568,-500.0,0.00013723,2]
[399294998,1766249440577,-500.0,0.00013723,2]
[399295000,1766249440587,-500.0,0.00013723,2]
[399295001,1766249440595,-500.0,0.00013723,2]
[399295002,1766249440604,-500.0,0.00013723,2]
[399295003,1766249440613,-500.0,0.00013723,2]
[399295004,1766249440622,-500.0,0.00013723,2]
[399295005,1766249440632,-487.49534907,0.00013723,2]
[399295006,1766249440641,-500.0,0.00013723,2]
[399295007,1766249440650,-500.0,0.00013723,2]
[399295008,1766249440659,-500.0,0.00013723,2]
[399295009,1766249440668,-500.0,0.00013723,2]
[399295010,1766249440677,-500.0,0.00013723,2]
[399295011,1766249440686,-500.0,0.00013723,2]
[399295012,1766249440695,-500.0,0.00013723,2]
[399295013,1766249440703,-500.0,0.00013723,2]
[399295014,1766249440712,-500.0,0.00013723,2]
[399295015,1766249440722,-500.0,0.00013723,2]
[399295016,1766249440733,-500.0,0.00013723,2]
[399295017,1766249440743,-500.0,0.00013723,2]
[399295018,1766249440752,-500.0,0.00013723,2]
[399295019,1766249440762,-500.0,0.00013723,2]
[399295020,1766249440772,-500.0,0.00013723,2]
[399295021,1766249440783,-500.0,0.00013723,2]
[399295022,1766249440792,-500.0,0.00013723,2]
[399295023,1766249440803,-500.0,0.00013723,2]
[399295024,1766249440811,-500.0,0.00013723,2]
[399295025,1766249440820,-500.0,0.00013723,2]
[399295026,1766249440829,-500.0,0.00013723,2]
[399295027,1766249440839,-500.0,0.00013723,2]
[399295028,1766249440851,-500.0,0.00013723,2]
[399295029,1766249440862,-500.0,0.00013723,2]
[399295030,1766249440871,-500.0,0.00013723,2]
[399295031,1766249440881,-506.44561835,0.00013723,2]
[399295032,1766249440890,-500.0,0.00013723,2]
[399295033,1766249440900,-500.0,0.00013723,2]
[399295034,1766249440910,-260.33789622,0.00013723,2]
[399295035,1766249440923,-500.0,0.00013723,2]
[399295036,1766249440933,-509.67980687,0.00013723,2]
[399295037,1766249440942,-500.0,0.00013723,2]
[399295038,1766249440951,-500.0,0.00013723,2]
[399295039,1766249440960,-500.0,0.00013723,2]
[399295040,1766249440971,-500.0,0.00013723,2]
[399295041,1766249441216,-500.0,0.00013723,2]
[399295042,1766249441226,-500.0,0.00013723,2]
[399295043,1766249441235,-500.0,0.00013723,2]
[399295044,1766249441245,-443.74,0.00013723,2]
[399295045,1766249441256,-166.66,0.00013899,2]
[399295046,1766249441266,-12288.85489737,0.00013927,2]
[399295047,1766249441276,-15231.72780846,0.00013966,2]
[399295048,1766249441287,-443.74,0.00013997,2]
[399295049,1766249441297,-200.0,0.00014021,2]
[399295050,1766249441308,-166.66,0.00014098,2]
[399295051,1766249441318,-7645.88694908,0.00014127,2]
[399295052,1766249441327,-3240.0,0.00014141,2]
[399295053,1766249441336,-12288.85489731,0.00014257,2]
[399295054,1766249441345,-443.74,0.00014271,2]
[399295055,1766249441355,-166.66,0.00014298,2]
[399295056,1766249441365,-15231.72780846,0.00014333,2]
[399295057,1766249441374,-1852.42,0.00014494,2]
[399295058,1766249441384,-166.66,0.00014498,2]
[399295059,1766249441393,-238.78,0.00014504,2]
[399295060,1766249441403,-733.1,0.00014504,2]
[399295061,1766249441412,-10017.7644167,0.0001451,2]
[399295062,1766249441421,-443.74,0.00014545,2]
[399295063,1766249441430,-12288.85489731,0.00014588,2]
[399295064,1766249441440,-200.0,0.00014671,2]
[399295065,1766249441450,-166.66,0.00014698,2]
[399295066,1766249441459,-15231.72780846,0.00014699,2]
[399295067,1766249441468,-1000.0,0.00014744,2]
[399295068,1766249441477,-877.94679186,0.00014785,2]
[399295069,1766249441487,-1218.93,0.00014795,2]
[399295070,1766249441496,-300.0,0.00014795,2]
[399295071,1766249441506,-300.0,0.00014795,2]
[399295072,1766249441515,-300.0,0.00014795,2]
[399295073,1766249441527,-300.0,0.00014795,2]
[399295074,1766249441537,-300.0,0.00014795,2]
[399295075,1766249441547,-2500.0,0.00014795,2]
[399295076,1766249441556,-2500.0,0.00014795,2]
[399295077,1766249441565,-2500.0,0.00014795,2]
[399295078,1766249441575,-2500.0,0.00014795,2]
[399295079,1766249441585,-2500.0,0.00014795,2]
[399295080,1766249441594,-250.0,0.00014795,2]
[399295081,1766249441603,-151.4761841,0.00014795,2]
[399295082,1766249441612,-300.0,0.00014795,2]
[399295083,1766249441621,-707.52,0.00014801,3]
[399295084,1766249441631,-443.76,0.00014819,2]
[399295085,1766249441640,-1600.0,0.00014836,2]
[399295086,1766249441649,-166.67,0.00014872,2]
[399295087,1766249441663,-287.0,0.00014903,2]
[399295088,1766249441674,-12288.85489731,0.00014918,2]
[399295089,1766249441684,-208.43017519,0.00014956,2]
[399295090,1766249441693,-15231.72780846,0.00015066,2]
[399295091,1766249441702,-237.3687377,0.00015188,2]
[399295092,1766249441711,-206.4671494,0.00015199,2]
[399295093,1766249441720,-3533.36,0.00015234,2]
[399295094,1766249441729,-12288.85489731,0.00015248,2]
[399295095,1766249441738,-150.0,0.00015288,2]
[399295096,1766249441749,-150.0,0.00015288,2]
[399295097,1766249441764,-150.0,0.00015288,2]
[399295098,1766249441773,-150.0,0.00015288,2]
[399295099,1766249441782,-150.0,0.00015288,2]
[399295100,1766249441792,-150.0,0.00015288,2]
[399295101,1766249441801,-150.0,0.00015288,2]
[399295102,1766249441810,-150.0,0.00015288,2]
[399295103,1766249441819,-150.0,0.00015288,2]
[399295104,1766249441828,-150.0,0.00015288,2]
[399295105,1766249441837,-150.0,0.00015288,2]
[399295106,1766249441847,-150.0,0.00015338,2]
[399295107,1766249441856,-150.0,0.00015356,2]
[399295108,1766249441868,-150.0,0.00015369,2]
[399295109,1766249441878,-150.0,0.00015369,2]
[399295110,1766249441888,-150.0,0.00015388,2]
[399295111,1766249441897,-150.0,0.00015388,2]
[399295112,1766249441906,-659.0,0.0001539,2]
[399295113,1766249441915,-150.0,0.00015394,2]
[399295114,1766249441924,-150.0,0.00015409,2]
[399295115,1766249441933,-150.0,0.00015424,2]
[399295116,1766249441942,-15231.72780846,0.00015433,2]
[399295117,1766249441951,-150.0,0.00015438,2]
[399295118,1766249441961,-150.0,0.00015449,2]
[399295119,1766249441971,-150.0,0.00015449,2]
[399295120,1766249441981,-150.0,0.00015488,2]
[399295121,1766249441992,-150.0,0.00015488,2]
[399295122,1766249442002,-150.0,0.00015492,2]
[399295123,1766249442012,-150.0,0.000155,2]
[399295124,1766249442022,-150.0,0.0001553,2]
[399295125,1766249442031,-150.0,0.0001553,2]
[399295126,1766249442041,-150.0,0.0001553,2]
[399295127,1766249442052,-150.0,0.00015537,2]
[399295128,1766249442066,-150.0,0.00015559,2]
[399295129,1766249442077,-12288.85489731,0.00015579,2]
[399295130,1766249442087,-150.0,0.00015587,2]
[399295131,1766249442097,-150.0,0.00015587,2]